bitfinex/quotes_BTCUSD_20250417
["timestamp","ask_amount","ask_price","bid_price","bid_amount"]
[1744898045647,0.23665582,84511.0,84506.0,0.01183347]
[1744898046033,0.24848758,84512.0,84507.0,0.01183333]
[1744898046233,0.24848758,84512.0,84506.0,0.01183347]
[1744898046422,0.00013543,84513.0,84512.0,0.23665278]
[1744898046759,0.00013543,84513.0,84511.0,0.23665558]
[1744898046760,0.00013543,84513.0,84511.0,0.01454085]
[1744898046967,0.01183319,84508.0,84503.0,0.36637474]
[1744898047204,0.01183291,84510.0,84503.0,0.36637474]
[1744898047205,0.01183305,84509.0,84504.0,0.01183375]
[1744898047519,0.24849159,84510.0,84505.0,0.01183361]
[1744898047738,0.01183263,84512.0,84507.0,0.24849946]
[1744898047926,0.00013543,84513.0,84511.0,0.23665539]
[1744898048281,0.00013543,84513.0,84512.0,0.25119363]
[1744898048714,0.00013543,84513.0,84512.0,0.01454085]
[1744898048917,0.00013543,84513.0,84512.0,0.25119363]
[1744898049113,0.23678541,84513.0,84511.0,0.11944791]
[1744898049316,0.23678541,84513.0,84504.0,0.24850746]
[1744898049523,0.23678704,84513.0,84506.0,0.01183347]
[1744898049760,0.00013543,84513.0,84506.0,0.01183347]
[1744898049963,0.23678766,84513.0,84507.0,0.26304096]
[1744898050370,0.23666398,84508.0,84507.0,0.01454085]
[1744898051067,0.23666208,84509.0,84507.0,0.01454085]
[1744898051414,0.23666087,84512.0,84507.0,0.01454085]
[1744898051628,0.23666087,84512.0,84508.0,0.01183319]
[1744898051847,0.23666087,84512.0,84507.0,0.26304041]
[1744898052048,0.23665668,84511.0,84507.0,0.02637418]
[1744898052285,0.23665616,84511.0,84508.0,0.02214224]
[1744898052517,0.0004209,84537.0,84513.0,0.35454085]
[1744898052721,0.0004209,84537.0,84528.0,0.59114883]
[1744898052926,0.0004209,84537.0,84528.0,0.95915956]
[1744898053126,0.01182941,84535.0,84528.0,0.83467382]
[1744898053333,0.24841859,84535.0,84528.0,0.95183389]
[1744898053675,0.0004209,84537.0,84528.0,0.96290139]
[1744898054214,0.0004209,84537.0,84528.0,0.94075915]
[1744898055036,0.0004209,84537.0,84528.0,0.92969165]
[1744898055233,0.0004209,84537.0,84528.0,0.93844518]
[1744898057148,0.0004209,84537.0,84528.0,0.59844518]
[1744898057373,0.0004209,84537.0,84528.0,0.51823027]
[1744898058673,0.0004209,84537.0,84528.0,0.56733027]
[1744898059016,0.0004209,84537.0,84528.0,0.76699309]
[1744898060002,0.0004209,84537.0,84536.0,0.25112644]
[1744898060341,0.0004209,84537.0,84536.0,0.95803717]
[1744898061226,0.0004209,84537.0,84536.0,0.96103717]
[1744898062829,0.0004209,84537.0,84536.0,0.95903717]
[1744898063057,0.0004209,84537.0,84536.0,0.96003717]
[1744898063263,0.0004209,84537.0,84536.0,0.96103717]
[1744898063765,0.0004209,84537.0,84536.0,0.91323717]
[1744898064493,0.0004209,84537.0,84536.0,0.91023717]
[1744898064741,0.0004209,84537.0,84536.0,0.91223717]
[1744898065778,0.0004209,84537.0,84536.0,0.91323717]
[1744898066022,0.0004209,84537.0,84536.0,0.91123717]
[1744898066430,0.0004209,84537.0,84536.0,0.91223717]
[1744898066850,0.0004209,84537.0,84536.0,0.91323717]
[1744898072603,0.0004209,84537.0,84536.0,0.89869632]
[1744898072806,0.0004209,84537.0,84536.0,1.03749632]
[1744898073002,0.0004209,84537.0,84536.0,1.05203717]
[1744898073552,0.0004209,84537.0,84536.0,1.05103717]
[1744898073752,0.23700369,84537.0,84536.0,0.11944791]
[1744898073952,0.29393282,84537.0,84536.0,0.003]
[1744898074177,0.29393282,84537.0,84536.0,0.002]
[1744898074374,0.29493282,84537.0,84536.0,0.002]
[1744898075127,0.24843153,84531.0,84528.0,0.001]
[1744898075330,0.01182927,84536.0,84530.0,0.01183011]
[1744898075536,0.01082927,84536.0,84533.0,0.23659343]
[1744898075736,0.0465209,84537.0,84536.0,0.23658559]
[1744898075969,0.0465209,84537.0,84535.0,0.23658703]
[1744898076278,0.0465209,84537.0,84534.0,0.01182955]
[1744898076279,0.0014209,84537.0,84534.0,0.01182955]
[1744898076545,0.0014209,84537.0,84533.0,0.01182969]
[1744898076546,0.23658823,84536.0,84533.0,0.01182969]
[1744898076760,0.23660518,84529.0,84528.0,0.001]
[1744898077138,0.23660238,84530.0,84528.0,0.001]
[1744898077499,0.23657924,84539.0,84532.0,0.01182983]
[1744898077694,0.24841843,84535.0,84532.0,0.01182983]
[1744898077897,0.24983549,84537.0,84534.0,0.01182955]
[1744898078108,0.01182941,84535.0,84532.0,0.01182983]
[1744898078310,0.23659121,84534.0,84532.0,0.01182983]
[1744898078533,0.23660112,84531.0,84528.0,0.2582335]
[1744898078692,0.01182983,84532.0,84529.0,0.2366043]
[1744898078894,0.01182983,84532.0,84529.0,0.24843455]
[1744898079391,0.23660238,84530.0,84528.0,0.001]
[1744898079692,0.23660518,84529.0,84528.0,0.001]
[1744898080104,0.28600368,84530.0,84528.0,0.001]
[1744898080308,0.0494,84530.0,84529.0,0.23660518]
[1744898080546,0.0494,84530.0,84528.0,0.001]
[1744898080750,0.0494,84530.0,84529.0,0.23660518]
[1744898081449,0.0494,84530.0,84528.0,0.001]
[1744898081619,0.23660518,84529.0,84528.0,0.001]
[1744898082019,0.286004,84530.0,84528.0,0.001]
[1744898082238,0.23660518,84529.0,84528.0,0.001]
[1744898082445,0.28370518,84529.0,84528.0,0.001]
[1744898087985,0.40315309,84529.0,84528.0,0.001]
[1744898091245,0.23665383,84512.0,84510.0,0.24849092]
[1744898091403,0.23665383,84512.0,84510.0,0.24949092]
[1744898092280,0.23665383,84512.0,84510.0,0.001]
[1744898092484,0.32925558,84511.0,84510.0,0.001]
[1744898092888,0.32925558,84511.0,84510.0,0.002]
[1744898094042,0.32925558,84511.0,84510.0,0.001]
[1744898094461,0.32925558,84511.0,84510.0,0.003]
[1744898094904,0.32925558,84511.0,84510.0,0.001]
[1744898095103,0.23668748,84500.0,84497.0,0.01183473]
[1744898095315,0.23668748,84500.0,84498.0,0.000452]
[1744898095747,0.23668919,84499.0,84498.0,0.000452]
[1744898096858,0.23668649,84500.0,84498.0,0.000452]
[1744898097099,0.23668919,84499.0,84498.0,0.000452]
[1744898097319,0.001,84499.0,84498.0,0.000452]
[1744898098007,0.23768919,84499.0,84498.0,0.000452]
[1744898098243,0.001,84499.0,84498.0,0.000452]
[1744898098987,0.23768919,84499.0,84498.0,0.000452]
[1744898099430,0.23868919,84499.0,84498.0,0.000452]
[1744898099795,0.002,84499.0,84498.0,0.000452]
[1744898099999,0.002,84499.0,84498.0,0.23714399]
[1744898101039,0.002,84499.0,84498.0,0.000452]
[1744898101274,0.002,84499.0,84498.0,0.23714399]
[1744898101824,0.002,84499.0,84498.0,0.000452]
[1744898102050,0.002,84499.0,84498.0,0.23714399]
[1744898102295,0.23868919,84499.0,84498.0,0.000452]
[1744898102501,0.28888919,84499.0,84498.0,0.000452]
[1744898103441,0.003,84499.0,84498.0,0.000452]
[1744898103673,0.23868919,84499.0,84498.0,0.000452]
[1744898103903,0.23768919,84499.0,84498.0,0.000452]
[1744898104127,0.005,84499.0,84498.0,0.000452]
[1744898104322,0.24368919,84499.0,84498.0,0.000452]
[1744898107203,0.007,84499.0,84498.0,0.23714399]
[1744898107612,0.007,84499.0,84498.0,0.000452]
[1744898108656,0.007,84499.0,84498.0,0.23714399]
[1744898108860,0.007,84499.0,84498.0,0.23814399]
[1744898109557,0.007,84499.0,84498.0,0.25268484]
[1744898110058,0.005,84499.0,84498.0,0.25268484]
[1744898110257,0.001,84499.0,84498.0,0.25268484]
[1744898110623,0.002,84499.0,84498.0,0.25268484]
[1744898112752,0.23868919,84499.0,84498.0,0.001452]
[1744898112985,0.28598919,84499.0,84498.0,0.001452]
[1744898114796,0.28498919,84499.0,84498.0,0.001452]
[1744898115328,0.28798919,84499.0,84498.0,0.001452]
[1744898115690,0.4174371,84499.0,84498.0,0.001452]
[1744898116807,0.4154371,84499.0,84498.0,0.001452]
[1744898117009,0.4649371,84499.0,84498.0,0.001452]
[1744898117186,0.23674242,84480.0,84479.0,0.0008422]
[1744898117391,0.41539033,84480.0,84479.0,0.0008422]
[1744898117594,0.40539033,84480.0,84479.0,0.0008422]
[1744898118398,0.40539033,84480.0,84479.0,0.0018422]
[1744898118650,0.41539033,84480.0,84479.0,0.0018422]
[1744898119494,0.41539033,84480.0,84475.0,0.0005252]
[1744898119495,0.0477,84476.0,84475.0,0.0005252]
[1744898119697,0.43390154,84476.0,84475.0,0.0005252]
[1744898120247,0.40390154,84476.0,84475.0,0.0005252]
[1744898120448,0.28445363,84476.0,84475.0,0.0005252]
[1744898120687,0.23675363,84476.0,84475.0,0.0005252]
[1744898121106,0.36220154,84476.0,84475.0,0.0005252]
[1744898121418,0.37220154,84476.0,84475.0,0.0005252]
[1744898122274,0.37220154,84476.0,84475.0,1e-08]
[1744898122480,0.39419721,84476.0,84475.0,1e-08]
[1744898122690,0.73419721,84476.0,84475.0,1e-08]
[1744898122883,1.23929721,84476.0,84475.0,1e-08]
[1744898123242,1.23329721,84476.0,84475.0,1e-08]
[1744898123566,1.24229721,84476.0,84475.0,1e-08]
[1744898123745,1.24229721,84476.0,84473.0,1e-08]
[1744898123746,0.23675923,84474.0,84473.0,1e-08]
[1744898123943,0.83160714,84474.0,84473.0,1e-08]
[1744898124144,0.34,84471.0,84455.0,0.0008414]
[1744898124510,0.54944791,84471.0,84455.0,0.0008414]
[1744898125452,0.54957065,84471.0,84455.0,0.0008414]
[1744898126070,0.78633829,84471.0,84455.0,0.0008414]
[1744898126806,0.45933829,84471.0,84470.0,0.0018424]
[1744898132386,0.46033829,84471.0,84470.0,0.0018424]
[1744898134360,0.59929829,84471.0,84470.0,0.0018424]
[1744898136559,0.46033829,84471.0,84470.0,0.0018424]
[1744898137560,0.46033829,84471.0,84470.0,0.0020004]
[1744898137785,0.25089038,84471.0,84470.0,0.0020004]
[1744898138284,0.01412274,84471.0,84470.0,0.0020004]
[1744898138516,0.25089038,84471.0,84470.0,0.0020004]
[1744898138850,0.24589038,84471.0,84470.0,0.0020004]
[1744898139085,0.00412274,84471.0,84470.0,0.0010004]
[1744898139289,0.24089038,84471.0,84470.0,0.0010004]
[1744898139516,0.24689038,84471.0,84470.0,0.0010004]
[1744898139713,0.24389038,84471.0,84470.0,0.0010004]
[1744898139925,0.24689038,84471.0,84470.0,0.0010004]
[1744898142634,0.24689038,84471.0,84470.0,0.0020004]
[1744898142836,0.01012274,84471.0,84470.0,0.0020004]
[1744898143238,0.24689038,84471.0,84470.0,0.0020004]
[1744898143439,0.01012274,84471.0,84470.0,0.28807085]
[1744898143639,0.24689038,84471.0,84470.0,0.0513004]
[1744898144269,0.00712274,84471.0,84470.0,0.0513004]
[1744898144489,0.24389038,84471.0,84470.0,0.0020004]
[1744898144713,0.24489038,84471.0,84470.0,0.0020004]
[1744898145115,0.23789038,84471.0,84470.0,0.0020004]
[1744898145520,0.00412274,84471.0,84470.0,0.0020004]
[1744898145918,0.00612274,84471.0,84470.0,0.0020004]
[1744898146117,0.24289038,84471.0,84470.0,0.0020004]
[1744898151404,0.24189038,84471.0,84470.0,0.0010004]
[1744898152434,0.00512274,84471.0,84470.0,0.23877085]
[1744898157303,0.00512274,84471.0,84470.0,0.0020004]
[1744898157457,0.24189038,84471.0,84470.0,0.0020004]
[1744898157664,0.00512274,84471.0,84470.0,0.0020004]
[1744898157819,0.24189038,84471.0,84467.0,0.01183894]
[1744898158028,0.00512274,84471.0,84468.0,0.23677406]
[1744898158228,0.24189045,84471.0,84468.0,0.23677406]
[1744898158474,0.23678446,84465.0,84464.0,0.0008412]
[1744898159617,0.24865476,84455.0,84451.0,0.21492292]
[1744898160002,0.01184062,84455.0,84452.0,0.23681963]
[1744898160391,0.24864453,84458.0,84455.0,0.23681247]
[1744898160727,0.23679569,84461.0,84457.0,0.24864491]
[1744898160931,0.01183936,84464.0,84459.0,0.23679929]
[1744898161136,0.24862716,84464.0,84460.0,0.2367978]
[1744898161383,0.24862716,84464.0,84460.0,0.24863715]
[1744898161583,0.2496239,84465.0,84460.0,0.24863715]
[1744898161711,0.001,84464.0,84461.0,0.23679496]
[1744898162060,0.0118402,84458.0,84454.0,0.01184076]
[1744898162233,0.24864978,84458.0,84454.0,0.24865496]
[1744898162438,0.01184062,84455.0,84449.0,0.24866831]
[1744898162640,0.0118409,84453.0,84449.0,0.24866828]
[1744898162841,0.2486606,84453.0,84449.0,0.24866828]
[1744898163043,0.01184048,84456.0,84448.0,0.00909395]
[1744898163044,0.23679029,84463.0,84459.0,0.01184006]
[1744898163285,0.2367952,84462.0,84457.0,0.01184034]
[1744898163471,0.01183978,84461.0,84458.0,0.0118402]
[1744898163661,0.01183978,84461.0,84458.0,0.24864305]
[1744898163845,0.24863553,84461.0,84458.0,0.24864305]
[1744898164045,0.23679865,84460.0,84457.0,0.24864596]
[1744898164472,0.24864043,84460.0,84456.0,0.01184048]
[1744898164679,0.24864043,84460.0,84456.0,0.24864905]
[1744898165823,0.23680486,84458.0,84456.0,0.001]
[1744898165959,0.23680689,84457.0,84456.0,0.001]
[1744898166321,0.23680689,84457.0,84456.0,0.002]
[1744898166718,0.01183978,84461.0,84456.0,0.002]
[1744898166915,0.23680474,84458.0,84456.0,0.002]
[1744898167103,0.23680474,84458.0,84456.0,0.001]
[1744898167525,0.23778757,84464.0,84461.0,0.01183978]
[1744898167686,0.001,84464.0,84463.0,0.23679007]
[1744898167890,0.001,84464.0,84463.0,0.37077883]
[1744898168088,0.001,84464.0,84463.0,0.41957883]
[1744898168284,0.001,84464.0,84463.0,0.37077883]
[1744898168695,0.002,84464.0,84463.0,0.37077883]
[1744898168908,0.001,84464.0,84463.0,0.37077883]
[1744898169336,0.002,84464.0,84463.0,0.37077883]
[1744898170415,0.003,84464.0,84463.0,0.37077883]
[1744898170613,0.003,84464.0,84463.0,0.37177883]
[1744898170822,0.003,84464.0,84463.0,0.71177883]
[1744898171434,0.001,84464.0,84463.0,0.71177883]
[1744898171787,0.001,84464.0,84463.0,0.71277883]
[1744898172067,0.001,84464.0,84463.0,0.71477883]
[1744898175450,0.001,84464.0,84463.0,0.37477883]
[1744898175672,0.001,84464.0,84463.0,0.13798876]
[1744898176812,0.001,84464.0,84463.0,0.004]
[1744898177034,0.23778727,84464.0,84463.0,0.004]
[1744898177671,0.001,84464.0,84463.0,0.003]
[1744898177800,0.001,84464.0,84463.0,0.23879007]
[1744898178008,0.001,84464.0,84463.0,0.002]
[1744898178215,0.002,84464.0,84463.0,0.002]
[1744898178452,0.001,84464.0,84463.0,0.001]
[1744898178665,0.003,84464.0,84463.0,0.001]
[1744898180752,0.003,84464.0,84463.0,0.23779007]
[1744898180890,0.003,84464.0,84463.0,0.001]
[1744898181871,0.23978727,84464.0,84463.0,0.001]
[1744898184791,0.28758727,84464.0,84463.0,0.001]
[1744898184947,0.46283518,84464.0,84463.0,0.001]
[1744898185406,0.48489138,84464.0,84463.0,0.001]
[1744898185551,0.49591282,84464.0,84463.0,0.001]
[1744898186103,0.49491282,84464.0,84463.0,0.001]
[1744898186518,0.49991282,84464.0,84463.0,0.001]
[1744898186728,0.50707504,84464.0,84463.0,0.001]
[1744898186891,0.50607504,84464.0,84463.0,0.001]
[1744898187291,0.50707504,84464.0,84463.0,0.001]
[1744898187939,0.50607504,84464.0,84463.0,0.001]
[1744898188090,0.51007504,84464.0,84463.0,0.001]
[1744898188528,0.51607504,84464.0,84463.0,0.001]
[1744898189230,0.52207504,84464.0,84463.0,0.001]
[1744898190976,0.23684335,84444.0,84443.0,0.0002074]
[1744898191599,0.28566298,84437.0,84422.0,0.0004214]
[1744898191797,0.41511089,84437.0,84422.0,0.0004214]
[1744898192419,0.41511089,84437.0,84436.0,0.00055673]
[1744898192576,0.43710395,84437.0,84436.0,0.00055673]
[1744898192777,0.43910395,84437.0,84436.0,0.00055673]
[1744898192975,0.43710395,84437.0,84436.0,0.00055673]
[1744898193163,0.31765604,84437.0,84436.0,0.00055673]
[1744898193370,0.30066298,84437.0,84436.0,0.00055673]
[1744898193568,0.25486298,84437.0,84436.0,0.00055673]
[1744898193948,0.24486298,84437.0,84436.0,0.00055673]
[1744898194627,0.23986298,84437.0,84436.0,0.00055673]
[1744898194807,0.24286298,84437.0,84436.0,0.00055673]
[1744898196112,0.36231089,84437.0,84436.0,0.00055673]
[1744898196963,0.37231089,84437.0,84436.0,0.00055673]
[1744898198247,0.25286298,84437.0,84436.0,0.00055673]
[1744898200734,0.37231089,84437.0,84436.0,0.00055673]
[1744898208459,0.24286298,84437.0,84436.0,0.00087413]
[1744898212754,0.24286298,84437.0,84436.0,0.00187413]
[1744898212755,0.006,84437.0,84436.0,0.00187413]
[1744898213168,0.24286298,84437.0,84436.0,0.00187413]
[1744898214661,0.23686298,84437.0,84436.0,0.00187413]
[1744898214843,0.23886298,84437.0,84436.0,0.00187413]
[1744898215059,0.24086298,84437.0,84436.0,0.00187413]
[1744898215286,0.23886298,84437.0,84436.0,0.00187413]
[1744898215604,0.24086298,84437.0,84436.0,0.00187413]
[1744898221710,0.24086298,84437.0,84436.0,0.00087413]
[1744898221893,0.26292458,84437.0,84436.0,0.00087413]
[1744898224022,0.31022458,84437.0,84436.0,0.00087413]
[1744898224228,0.30882458,84437.0,84436.0,0.00087413]
[1744898224446,0.26292458,84437.0,84436.0,0.00087413]
[1744898224841,0.24086298,84437.0,84436.0,0.00087413]
[1744898235664,0.004,84437.0,84436.0,0.00087413]
[1744898235986,0.24086298,84437.0,84436.0,0.00087413]
[1744898238742,0.004,84437.0,84436.0,0.00087413]
[1744898238948,0.004,84437.0,84436.0,0.23773992]
[1744898239148,0.004,84437.0,84436.0,0.28663992]
[1744898239357,0.004,84437.0,84436.0,0.30118077]
[1744898239562,0.004,84437.0,84436.0,0.42062868]
[1744898240126,0.002,84437.0,84436.0,0.42062868]
[1744898240356,0.01184076,84454.0,84451.0,0.23682328]
[1744898240560,0.24865667,84454.0,84451.0,0.0803941]
[1744898240759,0.24865667,84454.0,84451.0,0.01161127]
[1744898240963,0.23681915,84453.0,84451.0,0.01161127]
[1744898241146,0.23681915,84453.0,84450.0,0.24866778]
[1744898241343,0.2486649,84451.0,84447.0,0.24867537]
[1744898241555,0.23681413,84455.0,84441.0,0.01184258]
[1744898241556,0.24867295,84449.0,84441.0,0.01184258]
[1744898241713,0.23683213,84448.0,84444.0,0.24868385]
[1744898242489,0.23683213,84448.0,84444.0,0.26049618]
[1744898242645,0.23683336,84448.0,84444.0,0.26049618]
[1744898243226,0.24867295,84449.0,84445.0,0.24868209]
[1744898243414,0.001,84448.0,84446.0,0.23683731]
[1744898243624,0.23783223,84448.0,84446.0,0.01184188]
[1744898243829,0.23883223,84448.0,84445.0,0.01184202]
[1744898244074,0.002,84448.0,84446.0,0.23683774]
[1744898244278,0.002,84448.0,84445.0,0.01184202]
[1744898244476,0.001,84448.0,84445.0,0.01184202]
[1744898244630,0.25067604,84448.0,84445.0,0.01184202]
[1744898244841,0.24967604,84448.0,84445.0,0.01184202]
[1744898245333,0.24867769,84447.0,84444.0,0.26049638]
[1744898245968,0.01184174,84447.0,84444.0,0.01184216]
[1744898246372,0.23683797,84446.0,84444.0,0.01184216]
[1744898247081,0.23684217,84445.0,84442.0,0.23684887]
[1744898247259,0.24867985,84446.0,84442.0,0.23684887]
[1744898247583,0.24867985,84446.0,84442.0,0.24869131]
[1744898248368,0.01184188,84446.0,84441.0,0.00871522]
[1744898248568,0.01184188,84446.0,84436.0,0.00187413]
[1744898248569,0.23686298,84437.0,84436.0,0.00187413]
[1744898250905,0.23786298,84437.0,84436.0,0.00187413]
[1744898251717,0.23786298,84437.0,84436.0,0.00219153]
[1744898252632,0.23886298,84437.0,84436.0,0.00219153]
[1744898253040,0.002,84437.0,84436.0,0.00219153]
[1744898253827,0.002,84437.0,84436.0,0.23905732]
[1744898254293,0.001,84437.0,84436.0,0.00219153]
[1744898254538,0.001,84437.0,84436.0,0.23905732]
[1744898254739,0.24868259,84445.0,84440.0,0.01184272]
[1744898254914,0.01184216,84444.0,84439.0,0.01184286]
[1744898255138,0.01184216,84444.0,84439.0,0.24869968]
[1744898255340,0.23684615,84443.0,84439.0,0.24869968]
[1744898255533,0.24868845,84443.0,84439.0,0.24869968]
[1744898255746,0.23685718,84440.0,84436.0,0.00219153]
[1744898255954,0.01184272,84440.0,84437.0,0.24870555]
[1744898256285,0.24869763,84440.0,84437.0,0.24870555]
[1744898256440,0.24869763,84440.0,84437.0,0.01184314]
[1744898256639,0.01184272,84440.0,84437.0,0.24870582]
[1744898257068,0.23686054,84438.0,84436.0,0.00219153]
[1744898257240,0.23686298,84437.0,84436.0,0.00219153]
[1744898257757,0.01184286,84439.0,84436.0,0.00219153]
[1744898258783,0.01184286,84439.0,84437.0,0.001]
[1744898258963,0.23686066,84438.0,84437.0,0.001]
[1744898259247,0.23686298,84437.0,84436.0,0.00319153]
[1744898259666,0.23686221,84438.0,84436.0,0.00219153]
[1744898260283,0.23686298,84437.0,84436.0,0.00219153]
[1744898261205,0.23686221,84438.0,84436.0,0.00219153]
[1744898261381,0.23686298,84437.0,84436.0,0.00219153]
[1744898262400,0.23686221,84438.0,84436.0,0.00219153]
[1744898262698,0.23686298,84437.0,84436.0,0.00219153]
[1744898263841,0.23686221,84438.0,84436.0,0.00219153]
[1744898264121,0.2368607,84438.0,84436.0,0.00219153]
[1744898264323,0.23686298,84437.0,84436.0,0.00219153]
[1744898265659,0.2368607,84438.0,84436.0,0.00219153]
[1744898267032,0.23686298,84437.0,84436.0,0.00219153]
[1744898268162,0.2368607,84438.0,84436.0,0.00219153]
[1744898269290,0.23686298,84437.0,84436.0,0.00219153]
[1744898271286,0.23686298,84437.0,84436.0,0.00087413]
[1744898274022,0.28516298,84437.0,84436.0,0.00087413]
[1744898274982,0.28616298,84437.0,84436.0,0.00087413]
[1744898276168,0.28716298,84437.0,84436.0,0.00087413]
[1744898280546,0.28816298,84437.0,84436.0,0.00087413]
[1744898281643,0.28816298,84437.0,84436.0,0.00055673]
[1744898283221,0.28816298,84437.0,84436.0,1e-08]
[1744898283222,1.24856404,84437.0,84436.0,1e-08]
[1744898283420,0.33310226,84423.0,84422.0,0.0004214]
[1744898283635,0.85255017,84423.0,84422.0,0.00055694]
[1744898284020,0.87460332,84423.0,84422.0,1e-08]
[1744898284627,0.87460332,84423.0,84422.0,0.00100001]
[1744898284800,0.87460332,84423.0,84422.0,1e-08]
[1744898285207,0.87960332,84423.0,84422.0,1e-08]
[1744898285414,0.88842313,84423.0,84422.0,1e-08]
[1744898285624,0.23691629,84418.0,84417.0,1e-08]
[1744898285814,0.24885643,84386.0,84379.0,0.22758681]
[1744898286020,0.24885643,84386.0,84380.0,0.35454085]
[1744898286236,0.2370201,84382.0,84380.0,0.01454085]
[1744898286442,0.23699416,84391.0,84380.0,0.02639199]
[1744898286642,0.01184862,84398.0,84390.0,0.01454085]
[1744898286848,0.01184876,84397.0,84390.0,0.26338547]
[1744898287047,0.24882794,84396.0,84390.0,0.01454085]
[1744898287262,0.01184904,84395.0,84388.0,0.02639087]
[1744898287467,0.23698092,84395.0,84388.0,0.24884773]
[1744898287609,0.23697807,84396.0,84393.0,0.24883573]
[1744898287814,0.24888912,84397.0,84393.0,0.24883573]
[1744898288023,0.23697821,84396.0,84393.0,0.24883573]
[1744898288920,0.24888912,84397.0,84393.0,0.25183573]
[1744898289351,6.402e-05,84397.0,84395.0,0.23698051]
[1744898289577,6.402e-05,84397.0,84396.0,0.23697805]
[1744898290423,0.24888942,84397.0,84394.0,0.24883085]
[1744898290630,0.24888942,84397.0,84394.0,0.24883274]
[1744898291053,0.24882761,84396.0,84394.0,0.01454085]
[1744898291580,0.24882709,84396.0,84394.0,0.01454085]
[1744898291962,0.24888942,84397.0,84394.0,0.03039003]
[1744898292136,0.24888942,84397.0,84395.0,0.23698078]
[1744898292338,6.402e-05,84397.0,84395.0,0.23698078]
[1744898292681,6.402e-05,84397.0,84396.0,0.23697805]
[1744898292889,6.402e-05,84397.0,84396.0,0.2515189]
[1744898294040,6.402e-05,84397.0,84396.0,0.2535189]
[1744898295324,6.402e-05,84397.0,84396.0,0.01654085]
[1744898296185,6.402e-05,84397.0,84396.0,0.2535189]
[1744898296588,0.23703926,84397.0,84396.0,0.002]
[1744898303225,6.402e-05,84397.0,84396.0,0.002]
[1744898303480,6.402e-05,84397.0,84396.0,0.23897805]
[1744898304451,0.23703926,84397.0,84396.0,0.002]
[1744898304653,6.402e-05,84397.0,84396.0,0.002]
[1744898305428,6.402e-05,84397.0,84396.0,0.23897805]
[1744898305628,6.402e-05,84397.0,84396.0,0.002]
[1744898305833,0.23703926,84397.0,84396.0,0.002]
[1744898310306,0.23699771,84389.0,84388.0,0.0004211]
[1744898310677,0.0118489,84396.0,84388.0,0.0004211]
[1744898310846,0.23698595,84394.0,84391.0,0.23699129]
[1744898311099,0.23699023,84392.0,84390.0,0.01184974]
[1744898311314,0.24883617,84393.0,84390.0,0.24884408]
[1744898311448,0.24883617,84393.0,84389.0,0.24884757]
[1744898311646,0.24883617,84393.0,84390.0,0.23699425]
[1744898311913,0.23698948,84392.0,84390.0,0.23699425]
[1744898312066,0.23698948,84392.0,84388.0,0.0014211]
[1744898312067,0.24883665,84393.0,84388.0,0.0024211]
[1744898312271,0.01184932,84393.0,84390.0,0.23699212]
[1744898312466,0.24883614,84393.0,84391.0,0.2369912]
[1744898312687,0.24883614,84393.0,84390.0,0.23699212]
[1744898313296,0.0118489,84396.0,84391.0,0.24883892]
[1744898313496,0.23698441,84394.0,84391.0,0.0118496]
[1744898313695,0.01184904,84395.0,84391.0,0.24883353]
[1744898313910,0.23698367,84394.0,84391.0,0.24883353]
[1744898315907,0.23698928,84392.0,84391.0,0.002]
[1744898316113,0.23698928,84392.0,84391.0,0.0023174]
[1744898316353,0.28378928,84392.0,84391.0,0.0003174]
[1744898317790,0.28478928,84392.0,84391.0,0.0003174]
[1744898318287,0.23798928,84392.0,84391.0,0.0013174]
[1744898318519,0.23798928,84392.0,84391.0,0.0003174]
[1744898322124,0.57798928,84392.0,84391.0,0.0003174]
[1744898322324,0.67309771,84389.0,84388.0,0.0004211]
[1744898322569,0.28632299,84380.0,84379.0,0.0013174]
[1744898322781,0.88549772,84380.0,84379.0,0.0013174]
[1744898323012,0.89549772,84380.0,84379.0,0.0013174]
[1744898324467,0.89849772,84380.0,84379.0,0.0013174]
[1744898324887,0.90249772,84380.0,84379.0,0.0013174]
[1744898326820,0.8804709,84380.0,84379.0,0.0013174]
[1744898328725,0.71172299,84380.0,84379.0,0.0013174]
[1744898329810,0.8311709,84380.0,84379.0,0.0013174]
[1744898330498,0.8211709,84380.0,84379.0,0.0013174]
[1744898331263,0.8211709,84380.0,84371.0,0.0004214]
[1744898331264,0.23703984,84374.0,84371.0,0.0004214]
[1744898332475,0.23903984,84374.0,84371.0,0.0004214]
[1744898332873,0.24103984,84374.0,84371.0,0.0004214]
[1744898341105,0.42028775,84374.0,84371.0,0.0004214]
[1744898342160,0.41828775,84374.0,84371.0,0.0004214]
[1744898342362,0.41628775,84374.0,84371.0,0.0004214]
[1744898342685,0.42328775,84374.0,84371.0,0.0004214]
[1744898342844,0.47228775,84374.0,84371.0,0.0004214]
[1744898343231,0.46928775,84374.0,84371.0,0.0004214]
[1744898343653,0.46528775,84374.0,84371.0,0.0004214]
[1744898343858,0.23711291,84348.0,84345.0,0.03227756]
[1744898344066,0.23711853,84346.0,84345.0,0.0204215]
[1744898344258,0.23711572,84347.0,84345.0,0.0214215]
[1744898344461,0.23711853,84346.0,84345.0,0.0214215]
[1744898345071,0.23718249,84346.0,84345.0,0.0214215]
[1744898345266,0.23718249,84346.0,84345.0,0.0244215]
[1744898346595,0.23718249,84346.0,84345.0,0.0254215]
[1744898347607,6.396e-05,84346.0,84345.0,0.0254215]
[1744898348375,6.396e-05,84346.0,84345.0,0.26254284]
[1744898348578,0.23718249,84346.0,84345.0,0.0254215]
[1744898348976,6.396e-05,84346.0,84345.0,0.0254215]
[1744898349589,6.396e-05,84346.0,84345.0,0.26254284]
[1744898350585,6.396e-05,84346.0,84345.0,0.0254215]
[1744898350832,6.396e-05,84346.0,84345.0,0.26254284]
[1744898351519,0.23718249,84346.0,84345.0,0.0254215]
[1744898351918,6.396e-05,84346.0,84345.0,0.0254215]
[1744898352124,6.396e-05,84346.0,84345.0,0.26254284]
[1744898353992,6.396e-05,84346.0,84345.0,0.3965316]
[1744898354843,6.396e-05,84346.0,84345.0,0.0254215]
[1744898355487,6.396e-05,84346.0,84345.0,0.26254284]
[1744898359796,6.396e-05,84346.0,84345.0,0.7819316]
[1744898360008,6.396e-05,84346.0,84345.0,0.8317316]
[1744898361117,0.001,84374.0,84373.0,0.23704265]
[1744898361603,0.001,84374.0,84372.0,0.28624546]
[1744898361813,0.001,84374.0,84373.0,0.23704265]
[1744898362218,0.001,84374.0,84372.0,0.23704479]
[1744898362342,0.001,84374.0,84373.0,0.23704265]
[1744898363450,0.003,84374.0,84373.0,0.2515835]
[1744898363920,0.003,84374.0,84373.0,0.41993141]
[1744898364125,0.003,84374.0,84373.0,0.46863141]
[1744898364673,0.001,84374.0,84373.0,0.46863141]